bitfinex/quotes_BTCUSD_20250616
["timestamp","ask_amount","ask_price","bid_price","bid_amount"]
[1750062289605,0.68749598,107150.0,107140.0,1.03502849]
[1750062289830,1.59077582,107150.0,107140.0,1.03502849]
[1750062291161,1.55113582,107150.0,107140.0,1.03502849]
[1750062291585,1.59077582,107150.0,107140.0,1.03502849]
[1750062298476,1.61317572,107150.0,107140.0,1.03502849]
[1750062300399,1.57353572,107150.0,107140.0,1.03502849]
[1750062300555,1.61317572,107150.0,107140.0,1.03502849]
[1750062304721,1.61317572,107150.0,107140.0,1.01752075]
[1750062309236,1.58187572,107150.0,107140.0,1.01752075]
[1750062310285,1.54857572,107150.0,107140.0,1.01752075]
[1750062311525,0.65462859,107150.0,107140.0,1.01752075]
[1750062311818,0.55838648,107150.0,107140.0,1.27602597]
[1750062312024,0.55838648,107150.0,107140.0,1.09868782]
[1750062312025,0.85808153,107150.0,107140.0,1.09868782]
[1750062312245,1.03540383,107150.0,107140.0,1.08002075]
[1750062312459,1.44855921,107150.0,107140.0,1.04892075]
[1750062312686,1.47096317,107150.0,107140.0,1.01752075]
[1750062312912,1.47096317,107150.0,107140.0,1.17012075]
[1750062315409,1.43136317,107150.0,107140.0,1.01752075]
[1750062315647,1.47096317,107150.0,107140.0,1.17012075]
[1750062319812,1.47096317,107150.0,107140.0,1.01752075]
[1750062320023,1.47096317,107150.0,107140.0,1.17012075]
[1750062323432,1.44855921,107150.0,107140.0,1.17012075]
[1750062330086,1.47092721,107150.0,107140.0,1.17012075]
[1750062336768,1.46092721,107150.0,107140.0,1.17012075]
[1750062340774,0.55768737,107150.0,107140.0,1.17012075]
[1750062340989,1.02906729,107150.0,107140.0,1.17012075]
[1750062341218,1.00669929,107150.0,107140.0,1.17012075]
[1750062341433,0.57487937,107150.0,107140.0,1.17012075]
[1750062341638,1.43851921,107150.0,107140.0,1.17012075]
[1750062341850,1.43851921,107150.0,107140.0,1.20743909]
[1750062342108,1.43851921,107150.0,107140.0,1.17012075]
[1750062342937,0.57487937,107150.0,107140.0,1.17012075]
[1750062343163,1.00669929,107150.0,107140.0,1.17012075]
[1750062343587,0.99736685,107150.0,107140.0,1.17012075]
[1750062344729,0.95780685,107150.0,107140.0,1.20965433]
[1750062344944,0.99736685,107150.0,107140.0,1.43645946]
[1750062345393,0.99736685,107150.0,107140.0,1.44579286]
[1750062345806,0.99736685,107150.0,107140.0,1.45512618]
[1750062346596,0.99736685,107150.0,107140.0,1.44579286]
[1750062346797,0.99736685,107150.0,107140.0,1.41499286]
[1750062347242,0.81071236,107150.0,107140.0,1.46675932]
[1750062347445,0.78048454,107150.0,107140.0,1.46675932]
[1750062347668,0.49004402,107150.0,107140.0,1.46675871]
[1750062347881,0.50870873,107150.0,107140.0,1.46675871]
[1750062348095,0.49937629,107150.0,107140.0,1.46675871]
[1750062348304,0.49004402,107150.0,107140.0,1.46675871]
[1750062349132,0.49937638,107150.0,107140.0,1.46675871]
[1750062349538,0.00933201,107150.0,107140.0,1.4387585]
[1750062349758,0.48071193,107150.0,107140.0,1.4387585]
[1750062349965,0.43181992,107150.0,107140.0,1.4387585]
[1750062350210,0.47137992,107150.0,107140.0,1.4387585]
[1750062350712,0.35866254,107160.0,107150.0,0.2471513]
[1750062350964,0.75251234,107170.0,107160.0,0.20530039]
[1750062351200,1.02599116,107170.0,107160.0,0.22396345]
[1750062351450,1.45781108,107170.0,107160.0,0.37652345]
[1750062351923,1.45781108,107170.0,107160.0,0.38585485]
[1750062352155,1.45781108,107170.0,107160.0,0.37652345]
[1750062352391,1.02599116,107170.0,107160.0,0.37652345]
[1750062352630,1.02599116,107170.0,107160.0,0.40337016]
[1750062352881,1.45781108,107170.0,107160.0,0.40337016]
[1750062353085,1.45781108,107170.0,107160.0,0.38470727]
[1750062353514,1.45981108,107170.0,107160.0,0.38470727]
[1750062353724,1.45981108,107170.0,107160.0,0.38468046]
[1750062354162,1.45981108,107170.0,107160.0,0.36719196]
[1750062354377,1.45981108,107170.0,107160.0,0.38468046]
[1750062354573,1.46081108,107170.0,107160.0,0.38468004]
[1750062354861,1.46081108,107170.0,107160.0,0.39401153]
[1750062355509,1.46081108,107170.0,107160.0,0.36719196]
[1750062355685,1.46081108,107170.0,107160.0,0.38467968]
[1750062355686,1.45148072,107170.0,107160.0,0.38467968]
[1750062356304,1.45148072,107170.0,107160.0,0.38467922]
[1750062357366,1.45148072,107170.0,107160.0,0.38467874]
[1750062357566,1.48188072,107170.0,107160.0,0.38467874]
[1750062357779,1.26486134,107170.0,107160.0,0.39401014]
[1750062358157,1.26486134,107170.0,107160.0,0.39401023]
[1750062358158,1.45148072,107170.0,107160.0,0.39401023]
[1750062358360,1.45148072,107170.0,107160.0,0.39400973]
[1750062358576,1.45148072,107170.0,107160.0,0.39400981]
[1750062358808,1.45148072,107170.0,107160.0,0.36719205]
[1750062359006,1.45148072,107170.0,107160.0,0.38467824]
[1750062359206,1.45148072,107170.0,107160.0,0.37534606]
[1750062359459,1.4421501,107170.0,107160.0,0.37534606]
[1750062359665,1.46421922,107170.0,107160.0,0.17004567]
[1750062359879,1.46421922,107170.0,107160.0,0.15256]
[1750062359880,1.49421922,107170.0,107160.0,0.15256]
[1750062360338,0.19596846,107160.0,107150.0,0.22848684]
[1750062360595,0.88230325,107160.0,107150.0,0.39398911]
[1750062360792,0.88230307,107160.0,107150.0,0.40332121]
[1750062361037,0.89163447,107160.0,107150.0,0.37650382]
[1750062361249,0.90096578,107160.0,107150.0,0.39398854]
[1750062361468,0.91029753,107160.0,107150.0,0.43130688]
[1750062361697,0.91029753,107160.0,107150.0,0.39398854]
[1750062362124,0.90096622,107160.0,107150.0,0.39398854]
[1750062362345,1.14880346,107160.0,107150.0,0.33917422]
[1750062362572,0.00933253,107150.0,107140.0,1.25405902]
[1750062362799,0.91350412,107150.0,107140.0,1.40219733]
[1750062363001,0.49937664,107150.0,107140.0,1.40219741]
[1750062363199,0.50870917,107150.0,107140.0,1.39286436]
[1750062363325,0.51804179,107150.0,107140.0,1.24967757]
[1750062363569,0.50870917,107150.0,107140.0,1.38471234]
[1750062363783,0.51804188,107150.0,107140.0,1.23419234]
[1750062364051,0.51804188,107150.0,107140.0,1.44151591]
[1750062364245,0.51804188,107150.0,107140.0,1.39586443]
[1750062364246,0.50870987,107150.0,107140.0,1.39586443]
[1750062364458,0.69536409,107150.0,107140.0,1.2258592]
[1750062364689,0.68603182,107150.0,107140.0,1.38771243]
[1750062364945,0.68603182,107150.0,107140.0,1.39700974]
[1750062365193,0.68603182,107150.0,107140.0,1.39700913]
[1750062365415,0.49004489,107150.0,107140.0,1.38885787]
[1750062365622,0.49937751,107150.0,107140.0,1.38885787]
[1750062366050,0.50871022,107150.0,107140.0,1.40634217]
[1750062366287,0.50871022,107150.0,107140.0,1.40634153]
[1750062366709,0.50871022,107150.0,107140.0,1.38885787]
[1750062366983,0.49937751,107150.0,107140.0,1.38885787]
[1750062367911,0.49937751,107150.0,107140.0,1.38885735]
[1750062368403,0.49937751,107150.0,107140.0,1.36085819]
[1750062369760,0.50871022,107150.0,107140.0,1.37019133]
[1750062370009,0.49937751,107150.0,107140.0,1.37952438]
[1750062370657,0.50871022,107150.0,107140.0,1.37952438]
[1750062371185,0.50871022,107150.0,107140.0,1.37019133]
[1750062371442,0.50871022,107150.0,107140.0,1.36085819]
[1750062371699,0.50871022,107150.0,107140.0,1.37019133]
[1750062372592,0.686032,107150.0,107140.0,1.36085819]
[1750062373037,0.686032,107150.0,107140.0,1.36085854]
[1750062373262,0.686032,107150.0,107140.0,1.37019168]
[1750062373470,0.49937778,107150.0,107140.0,1.37952473]
[1750062373980,0.49937778,107150.0,107140.0,1.37019168]
[1750062374385,0.49937778,107150.0,107140.0,1.37019177]
[1750062374670,0.49937778,107150.0,107140.0,1.37952491]
[1750062375871,0.49937778,107150.0,107140.0,1.37019177]
[1750062377402,0.49937778,107150.0,107140.0,1.37952491]
[1750062377827,0.49937778,107150.0,107140.0,1.37019177]
[1750062378185,0.49937778,107150.0,107140.0,1.37952491]
[1750062378940,0.49937778,107150.0,107140.0,1.37019177]
[1750062379211,0.49937778,107150.0,107140.0,1.42499718]
[1750062379383,0.49937778,107150.0,107140.0,1.38768369]
[1750062379525,0.686032,107150.0,107140.0,1.36085854]
[1750062380287,0.67669947,107150.0,107140.0,1.36901715]
[1750062380496,0.69996685,107150.0,107140.0,1.37019203]
[1750062380894,0.69996685,107150.0,107140.0,1.38768396]
[1750062381305,0.69996685,107150.0,107140.0,1.39701206]
[1750062381712,0.66736685,107150.0,107140.0,1.37952526]
[1750062382099,0.66736685,107150.0,107140.0,1.38767882]
[1750062382702,0.66736685,107150.0,107140.0,1.38767104]
[1750062382905,0.66736685,107150.0,107140.0,1.39700427]
[1750062383100,0.66736685,107150.0,107140.0,1.37019203]
[1750062384247,0.66736685,107150.0,107140.0,1.37952526]
[1750062384455,0.66736685,107150.0,107140.0,1.37019203]
[1750062385565,0.49004507,107150.0,107140.0,1.37952526]
[1750062385898,0.77181992,107160.0,107150.0,0.21465121]
[1750062386087,0.4036,107170.0,107160.0,0.20530004]
[1750062386307,0.26796189,107180.0,107160.0,0.43878232]
[1750062386532,0.4504788,107180.0,107170.0,0.20528104]
[1750062386716,0.83936855,107180.0,107170.0,0.22394202]
[1750062387159,1.28051839,107180.0,107170.0,0.22394202]
[1750062387290,1.28051839,107180.0,107170.0,0.24145806]
[1750062387494,1.28051839,107180.0,107170.0,0.22394202]
[1750062387799,1.28051839,107180.0,107170.0,0.24145799]
[1750062387966,1.2898484,107180.0,107170.0,0.2414581]
[1750062388167,1.2502884,107180.0,107170.0,0.2239421]
[1750062388367,1.45779149,107180.0,107170.0,0.21979699]
[1750062388567,1.48889149,107180.0,107170.0,0.21979699]
[1750062388912,1.49189149,107180.0,107170.0,0.21979705]
[1750062389124,1.49189149,107180.0,107170.0,0.20228104]
[1750062389329,1.49389149,107180.0,107170.0,0.22912767]
[1750062389505,1.49389149,107180.0,107170.0,0.21161166]
[1750062389733,1.49389149,107180.0,107170.0,0.22912767]
[1750062389911,1.49389149,107180.0,107170.0,0.23959938]
[1750062390059,1.49389149,107180.0,107170.0,0.21979705]
[1750062390688,1.49389149,107180.0,107170.0,0.22912767]
[1750062390863,1.06185096,107180.0,107170.0,0.22912767]
[1750062391079,1.06185096,107180.0,107170.0,0.21979705]
[1750062391788,1.08342121,107180.0,107170.0,0.38460802]
[1750062392002,0.89681924,107180.0,107170.0,0.38460802]
[1750062392219,1.08342121,107180.0,107170.0,0.38460794]
[1750062392436,1.08342121,107180.0,107170.0,0.01751593]
[1750062392650,1.07409129,107180.0,107170.0,0.17932697]
[1750062393066,1.07409129,107180.0,107170.0,0.16999601]
[1750062393274,1.06476128,107180.0,107170.0,0.16999601]
[1750062393694,1.06476128,107180.0,107170.0,0.16999608]
[1750062393900,1.06476128,107180.0,107170.0,0.17932704]
[1750062394332,1.06476128,107180.0,107170.0,0.16181096]
[1750062394537,1.06476128,107180.0,107170.0,0.17932704]
[1750062395380,1.06476128,107180.0,107170.0,0.18865792]
[1750062395635,1.06476128,107180.0,107170.0,0.17114184]
[1750062395844,1.06476128,107180.0,107170.0,0.15248]
[1750062396056,1.06476128,107180.0,107170.0,0.16999608]
[1750062396484,1.06476128,107180.0,107170.0,0.15248]
[1750062396991,1.06476128,107180.0,107170.0,0.16999608]
[1750062397208,1.06476128,107180.0,107170.0,0.15248]
[1750062397429,1.06476128,107180.0,107170.0,0.16181088]
[1750062397656,1.06476128,107180.0,107170.0,0.02684696]
[1750062397901,0.00933123,107160.0,107150.0,0.27031937]
[1750062398144,0.45959343,107160.0,107150.0,0.44964837]
[1750062398356,0.45959308,107160.0,107150.0,0.40846365]
[1750062398572,0.45959308,107160.0,107150.0,0.42598119]
[1750062398786,0.45026168,107160.0,107150.0,0.42598198]
[1750062399009,0.45026168,107160.0,107150.0,0.42598199]
[1750062399226,0.45026168,107160.0,107150.0,0.42698196]
[1750062399642,0.45026168,107160.0,107150.0,0.42998196]
[1750062400473,0.44093045,107160.0,107150.0,0.42992115]
[1750062400895,0.45026168,107160.0,107150.0,0.41246365]
[1750062401046,0.45026168,107160.0,107150.0,0.42992115]
[1750062401595,0.45026168,107160.0,107150.0,0.41246365]
[1750062401941,0.45026168,107160.0,107150.0,0.42992115]
[1750062402142,0.45959308,107160.0,107150.0,0.27744115]
[1750062402364,0.45959308,107160.0,107150.0,0.24544119]
[1750062402565,1.07782971,107160.0,107150.0,0.19065422]
[1750062402777,1.13249848,107160.0,107150.0,0.21744463]
[1750062402983,1.12316708,107160.0,107150.0,0.004]
[1750062403201,1.21007718,107160.0,107150.0,0.004]
[1750062404416,1.21007718,107160.0,107150.0,0.001]
[1750062404569,1.55007718,107160.0,107150.0,0.001]
[1750062404788,1.55007718,107160.0,107150.0,0.002]
[1750062405010,1.55007718,107160.0,107150.0,0.001]
[1750062405656,0.19598684,107150.0,107140.0,1.0]
[1750062405881,0.72810615,107150.0,107140.0,1.16177349]
[1750062406321,0.72810615,107150.0,107140.0,1.16177358]
[1750062406768,0.73743859,107150.0,107140.0,1.17110707]
[1750062407522,0.74677095,107150.0,107140.0,1.36715211]
[1750062407739,0.74677095,107150.0,107140.0,1.36815211]
[1750062408337,0.54145141,107150.0,107140.0,1.38681805]
[1750062408566,0.56944865,107150.0,107140.0,1.38681813]
[1750062408995,0.56944865,107150.0,107140.0,1.40427787]
[1750062409207,0.56944856,107150.0,107140.0,1.40427787]
[1750062409791,0.56944856,107150.0,107140.0,1.38681761]
[1750062410146,0.56944856,107150.0,107140.0,1.40427794]
[1750062410352,0.56944856,107150.0,107140.0,1.38681761]
[1750062410580,0.56944856,107150.0,107140.0,1.40427794]
[1750062410829,0.56944856,107150.0,107140.0,1.38681761]
[1750062411239,0.56944856,107150.0,107140.0,1.40427794]
[1750062411424,0.57878118,107150.0,107140.0,1.40427794]
[1750062411655,0.57878118,107150.0,107140.0,1.39494497]
[1750062412485,0.57878118,107150.0,107140.0,1.39494496]
[1750062412695,0.57878118,107150.0,107140.0,1.39494495]
[1750062412979,0.56944856,107150.0,107140.0,1.40427792]
[1750062413186,0.56944856,107150.0,107140.0,1.38681761]
[1750062413448,0.56944856,107150.0,107140.0,1.40427793]
[1750062413647,0.56944856,107150.0,107140.0,1.38681761]
[1750062413858,0.56944856,107150.0,107140.0,1.40433875]
[1750062414499,0.56944856,107150.0,107140.0,1.40433874]
[1750062415229,0.57878118,107150.0,107140.0,1.40433874]
[1750062415469,0.56944856,107150.0,107140.0,1.40433874]
[1750062415708,0.13784925,107150.0,107140.0,1.4043388]
[1750062415937,0.56011603,107150.0,107140.0,1.38681761]
[1750062416156,0.56011603,107150.0,107140.0,1.40433867]
[1750062416373,0.53011603,107150.0,107140.0,1.40433867]
[1750062416713,0.53944856,107150.0,107140.0,1.40433867]
[1750062417461,0.54878127,107150.0,107140.0,1.37748464]
[1750062417690,0.57948127,107150.0,107140.0,1.39494541]
[1750062417921,0.57948118,107150.0,107140.0,1.39494542]
[1750062418396,0.57948118,107150.0,107140.0,1.39494564]
[1750062418601,0.57948118,107150.0,107140.0,1.43226398]
[1750062418824,0.57014908,107150.0,107140.0,1.39494571]
[1750062419046,0.56081646,107150.0,107140.0,1.38681761]
[1750062419279,0.56081646,107150.0,107140.0,1.40427856]
[1750062419491,0.53011646,107150.0,107140.0,1.38681761]
[1750062419921,0.53011646,107150.0,107140.0,1.39494558]
[1750062420130,0.53944908,107150.0,107140.0,1.37748464]
[1750062420340,0.54878179,107150.0,107140.0,1.39494559]
[1750062420549,0.53011646,107150.0,107140.0,1.40427856]
[1750062420770,0.53011646,107150.0,107140.0,1.38681761]
[1750062421216,0.57204917,107150.0,107140.0,1.41480307]
[1750062421443,0.75870339,107150.0,107140.0,1.34015164]
[1750062421658,0.74937121,107150.0,107140.0,1.37627931]
[1750062421906,0.74937121,107150.0,107140.0,1.35881836]
[1750062422123,0.74937121,107150.0,107140.0,1.36694608]
[1750062422347,0.5301169,107150.0,107140.0,1.35881845]
[1750062422564,0.53944961,107150.0,107140.0,1.35881845]
[1750062422782,0.71677139,107150.0,107140.0,1.35881845]
[1750062423000,0.74867139,107150.0,107140.0,1.34948513]
[1750062423211,0.73933886,107150.0,107140.0,1.34015164]
[1750062423430,0.73933886,107150.0,107140.0,1.35881871]
[1750062423656,0.73933886,107150.0,107140.0,1.34948522]
[1750062423870,0.73000624,107150.0,107140.0,1.15348]
[1750062424589,0.72067353,107150.0,107140.0,1.001]
[1750062424804,0.72067353,107150.0,107140.0,1.15344]
[1750062425722,0.72067353,107150.0,107140.0,1.15244]
[1750062427055,0.72367353,107150.0,107140.0,1.15244]
[1750062428119,0.72367353,107150.0,107140.0,1.0]
[1750062428326,0.72367353,107150.0,107140.0,1.15244]
[1750062428794,0.81991529,107150.0,107140.0,1.15244]
[1750062431386,0.81991529,107150.0,107140.0,1.0]
[1750062431588,1.15991529,107150.0,107140.0,1.0]
[1750062432633,1.18228954,107150.0,107140.0,1.0]
[1750062435045,1.61451845,107150.0,107140.0,1.0]
[1750062435513,1.5921442,107150.0,107140.0,1.0]
[1750062435746,1.61451657,107150.0,107140.0,1.0]
[1750062437863,1.61451657,107150.0,107140.0,1.01752298]
[1750062438717,1.61451657,107150.0,107140.0,1.0]
[1750062439155,1.61451657,107150.0,107140.0,1.01752298]
[1750062439400,1.71066579,107150.0,107140.0,1.01748226]
[1750062439657,1.86310579,107150.0,107140.0,1.01748225]
[1750062439877,1.86310579,107150.0,107140.0,1.01748274]
[1750062440082,1.86310579,107150.0,107140.0,1.01748288]
[1750062440988,1.43124099,107150.0,107140.0,1.01748288]
[1750062441200,1.43124099,107150.0,107140.0,1.0174829]
[1750062441406,1.43124099,107150.0,107140.0,1.0]
[1750062441853,1.43124099,107150.0,107140.0,1.0174829]
[1750062442040,1.86320441,107150.0,107140.0,1.0174829]
[1750062442335,1.43124099,107150.0,107140.0,1.0174829]
[1750062442534,1.86320441,107150.0,107140.0,1.0]
[1750062442777,1.86320441,107150.0,107140.0,1.01748294]
[1750062442980,1.86320441,107150.0,107140.0,1.0]
[1750062443184,1.86320441,107150.0,107140.0,1.01748295]
[1750062443392,1.43124099,107150.0,107140.0,1.0]
[1750062443804,1.43124099,107150.0,107140.0,1.01748295]
[1750062444598,1.86320441,107150.0,107140.0,1.01748295]
[1750062444801,1.43124099,107150.0,107140.0,1.01748295]
[1750062444975,1.86320441,107150.0,107140.0,1.01748295]
[1750062445178,1.86320441,107150.0,107140.0,1.01748333]
[1750062445389,1.86320441,107150.0,107140.0,1.01748336]
[1750062445606,1.89125941,107150.0,107140.0,1.01748336]
[1750062445997,1.89125941,107150.0,107140.0,1.0]
[1750062446847,1.26733599,107150.0,107140.0,1.0]
[1750062447069,1.45929599,107150.0,107140.0,1.0]
[1750062447290,1.36314677,107150.0,107140.0,1.0]
[1750062450048,1.80965104,107150.0,107140.0,1.0]
[1750062450964,1.83761651,107150.0,107140.0,1.0]
[1750062451184,1.84417703,107150.0,107140.0,1.0]
[1750062451431,1.94032606,107150.0,107140.0,1.0]
[1750062451643,1.93376573,107150.0,107140.0,1.0]
[1750062451877,1.94032581,107150.0,107140.0,1.0]
[1750062452092,1.93376573,107150.0,107140.0,1.0]
[1750062452365,1.9403257,107150.0,107140.0,1.0]
[1750062452574,1.94032524,107150.0,107140.0,1.0]
[1750062452793,1.9403248,107150.0,107140.0,1.0]
[1750062453017,1.94032479,107150.0,107140.0,1.0]
[1750062453228,1.9403248,107150.0,107140.0,1.0]
[1750062453434,1.93376573,107150.0,107140.0,1.0]
[1750062453649,1.94032481,107150.0,107140.0,1.0]
[1750062454095,1.9403248,107150.0,107140.0,1.0]
[1750062454531,1.93376573,107150.0,107140.0,1.0]
[1750062454959,1.94032477,107150.0,107140.0,1.0]
[1750062455606,1.93376573,107150.0,107140.0,1.0]
[1750062456679,1.97104573,107150.0,107140.0,1.0]
[1750062459756,1.99029944,107150.0,107140.0,0.37139559]
[1750062459981,1.98376573,107150.0,107140.0,0.37139559]
[1750062460204,1.99029953,107150.0,107140.0,0.37139559]
[1750062460416,1.98829953,107150.0,107140.0,0.37139559]
[1750062460641,1.98176573,107150.0,107140.0,0.37139559]
[1750062460854,1.98729953,107150.0,107140.0,0.37139559]
[1750062461070,3.71658421,107150.0,107140.0,0.37139559]
[1750062461286,3.71858417,107150.0,107140.0,0.37139559]
[1750062461515,4.20428417,107150.0,107140.0,0.37139559]
[1750062461732,4.21359853,107150.0,107140.0,0.37139559]
[1750062461959,4.26106494,107150.0,107140.0,0.37139559]
[1750062462186,4.26759835,107150.0,107140.0,0.37139559]
[1750062462418,4.25821927,107150.0,107140.0,0.00920024]
[1750062462644,4.24768576,107150.0,107140.0,0.00920024]
[1750062462862,4.25221919,107150.0,107140.0,0.00920024]
[1750062463132,0.97761509,107110.0,107100.0,0.0418318]
[1750062463366,1.11333685,107110.0,107100.0,0.05070513]
[1750062464020,1.11333685,107110.0,107100.0,0.04197288]
[1750062464241,1.11333685,107110.0,107100.0,0.05070513]
[1750062464875,1.11333685,107110.0,107100.0,0.05470513]
[1750062465727,1.11333685,107110.0,107100.0,0.04597288]
[1750062465953,1.11333685,107110.0,107100.0,0.05570509]
[1750062466172,1.11333685,107110.0,107100.0,0.05570504]
[1750062466881,1.11333685,107110.0,107100.0,0.04697288]
[1750062467124,1.11333685,107110.0,107100.0,0.0557051]
[1750062467332,1.11333685,107110.0,107100.0,0.04697288]
[1750062467558,1.11333685,107110.0,107100.0,0.05570512]
[1750062469028,1.11333685,107110.0,107100.0,0.02260512]
[1750062469241,1.11333685,107110.0,107100.0,0.01387288]
[1750062469454,1.11333685,107110.0,107100.0,0.02263769]
[1750062469653,1.11333685,107110.0,107100.0,0.05293769]
[1750062470068,1.11333685,107110.0,107100.0,0.04417288]
[1750062470279,0.64163746,107110.0,107100.0,0.05293769]
[1750062470500,0.34933549,107110.0,107100.0,0.70547052]
[1750062470740,0.38881549,107110.0,107100.0,0.72414368]
[1750062470950,0.40748718,107110.0,107100.0,0.72414368]
[1750062471158,0.39815125,107110.0,107100.0,0.87662368]
[1750062471434,0.40748691,107110.0,107100.0,0.87662368]
[1750062471843,0.39815107,107110.0,107100.0,0.87662368]
[1750062472053,0.40748683,107110.0,107100.0,0.87662368]
[1750062472261,0.35867107,107110.0,107100.0,0.87662368]
[1750062472497,0.01867107,107110.0,107100.0,0.87662368]
[1750062472697,0.55471201,107120.0,107110.0,0.26969586]
[1750062472913,0.69043377,107120.0,107110.0,0.27903197]
[1750062473368,0.69043377,107120.0,107110.0,0.26969604]
[1750062473777,0.6810988,107120.0,107110.0,0.26136002]
[1750062474514,0.6810988,107120.0,107110.0,0.27069604]
[1750062474944,0.6810988,107120.0,107110.0,0.28003197]
[1750062475123,0.6810988,107120.0,107110.0,0.26136002]
[1750062475588,0.6810988,107120.0,107110.0,0.27069604]
[1750062475804,0.6810988,107120.0,107110.0,0.26136002]
[1750062476021,0.6810988,107120.0,107110.0,0.07463619]
[1750062476439,0.67176357,107120.0,107110.0,0.0653]
[1750062477725,0.67176357,107120.0,107110.0,0.07463619]
[1750062477945,0.67176357,107120.0,107110.0,0.0653]
[1750062478161,0.67176357,107120.0,107110.0,0.08397229]
[1750062478591,0.67176357,107120.0,107110.0,0.07463619]
[1750062479003,0.67176357,107120.0,107110.0,0.09214392]
[1750062479209,0.67176357,107120.0,107110.0,0.09214405]
[1750062479421,0.66242825,107120.0,107110.0,0.0828079]
[1750062479639,0.66242825,107120.0,107110.0,0.08280789]
[1750062480284,0.66242825,107120.0,107110.0,0.08280792]
[1750062480498,0.66242825,107120.0,107110.0,0.0653]
[1750062480716,0.66242825,107120.0,107110.0,0.08280792]
[1750062480935,0.66242825,107120.0,107110.0,0.08280799]
[1750062481151,0.66242825,107120.0,107110.0,0.04970799]
[1750062481352,1.09464764,107120.0,107110.0,0.0322]
[1750062481559,1.09464764,107120.0,107110.0,0.04970799]
[1750062481768,1.09464764,107120.0,107110.0,0.04970802]
[1750062481969,1.09464764,107120.0,107110.0,0.04970803]
[1750062482510,1.09464764,107120.0,107110.0,0.0322]
[1750062482739,1.09464764,107120.0,107110.0,0.04970806]
[1750062483003,0.62294825,107120.0,107110.0,0.08200805]
[1750062483254,1.09464764,107120.0,107110.0,0.08200796]
[1750062483391,1.09464764,107120.0,107110.0,0.08200804]
[1750062483599,1.09464764,107120.0,107110.0,0.08200803]
[1750062484068,1.09464764,107120.0,107110.0,0.08200804]
[1750062484278,1.09464764,107120.0,107110.0,0.0645]
[1750062484754,1.09464764,107120.0,107110.0,0.08200803]
[1750062485693,1.05516764,107120.0,107110.0,0.08200803]
[1750062485899,1.09464764,107120.0,107110.0,0.08202735]
[1750062486162,1.09464764,107120.0,107110.0,0.08202732]
[1750062486371,1.09464764,107120.0,107110.0,0.0645]
[1750062486572,1.09464764,107120.0,107110.0,0.08202732]
[1750062486983,1.09446272,107120.0,107110.0,0.08202732]
[1750062487182,1.09446272,107120.0,107110.0,0.09136351]
[1750062487321,1.09446272,107120.0,107110.0,0.09136342]
[1750062487528,1.10379795,107120.0,107110.0,0.27808697]
[1750062487762,1.07365292,107120.0,107110.0,0.28742302]
[1750062487966,1.11313292,107120.0,107110.0,0.29675886]
[1750062488316,1.11313292,107120.0,107110.0,0.28742301]
[1750062488428,1.11313292,107120.0,107110.0,0.29675901]
[1750062488649,1.10379795,107120.0,107110.0,0.08202678]
[1750062488880,1.10379795,107120.0,107110.0,0.09136288]
[1750062489085,0.01866846,107130.0,107120.0,0.19604164]
[1750062489298,0.04881384,107130.0,107120.0,0.72737019]
[1750062489583,0.39814768,107130.0,107120.0,0.87980998]
[1750062489801,0.05814759,107130.0,107120.0,0.86228509]
[1750062490009,0.21467294,107140.0,107130.0,0.24978906]
[1750062490272,0.01866602,107140.0,107130.0,0.2952552]
[1750062490482,0.05814593,107140.0,107130.0,0.70472195]
[1750062490692,0.04881288,107140.0,107130.0,0.70472188]
[1750062490897,0.04881288,107140.0,107130.0,0.27268708]
[1750062491118,0.04881288,107140.0,107130.0,0.28802467]
[1750062491332,0.05814593,107140.0,107130.0,0.28802467]
[1750062491586,0.02799708,107150.0,107140.0,0.20533818]
[1750062491780,0.06747672,107150.0,107140.0,0.42911115]
[1750062491987,0.40747672,107150.0,107140.0,0.42911115]
[1750062492192,0.06747664,107150.0,107140.0,0.42911115]
[1750062492409,0.06747664,107150.0,107140.0,0.42611115]
[1750062492614,0.06747664,107150.0,107140.0,0.42077801]
[1750062493054,0.06747664,107150.0,107140.0,0.42177801]
[1750062493494,0.05814428,107150.0,107140.0,0.43111115]
[1750062493729,0.06747664,107150.0,107140.0,0.43111115]
[1750062493939,0.05814428,107150.0,107140.0,0.43111115]
[1750062494410,0.0581441,107150.0,107140.0,0.43111115]
[1750062495563,0.06747611,107150.0,107140.0,0.43111115]
[1750062496609,0.00933192,107150.0,107140.0,0.43111063]
[1750062496827,0.04881192,107150.0,107140.0,0.43111063]
[1750062497673,0.03948,107150.0,107140.0,0.43111063]
[1750062498305,0.04881201,107150.0,107140.0,0.43111063]
[1750062498521,0.03948,107150.0,107140.0,0.43111063]
[1750062498749,0.04881201,107150.0,107140.0,0.43111063]
[1750062499176,0.04881201,107150.0,107140.0,0.43107063]
[1750062500383,0.04881201,107150.0,107140.0,0.44853115]
[1750062500597,0.03948,107150.0,107140.0,0.43107063]
[1750062500817,0.04881192,107150.0,107140.0,0.43107063]
[1750062501031,0.04881192,107150.0,107140.0,0.44853115]
[1750062501249,0.05814402,107150.0,107140.0,0.44853115]
[1750062501469,0.04881192,107150.0,107140.0,0.43107063]
[1750062501742,0.05814393,107150.0,107140.0,0.43107063]
[1750062502193,0.48990652,107150.0,107140.0,0.43107063]
[1750062504789,0.49923879,107150.0,107140.0,0.43107063]
[1750062504993,0.50857132,107150.0,107140.0,0.43107063]
[1750062505471,0.50857123,107150.0,107140.0,0.43107063]
[1750062506105,0.50857123,107150.0,107140.0,0.40007063]
[1750062506755,0.51790385,107150.0,107140.0,0.39073775]
[1750062507519,0.51790385,107150.0,107140.0,0.40007123]
[1750062507719,0.49923879,107150.0,107140.0,0.4094042]
[1750062508354,0.50857123,107150.0,107140.0,0.4094042]
[1750062509322,0.49923879,107150.0,107140.0,0.4094042]
[1750062509455,0.50857123,107150.0,107140.0,0.4094042]
[1750062510317,0.51790385,107150.0,107140.0,0.4094042]
[1750062510550,0.51790385,107150.0,107140.0,0.24767123]
[1750062510767,0.51790385,107150.0,107140.0,0.40003123]
[1750062510974,0.51792582,107150.0,107140.0,0.41755232]
[1750062511175,0.51792582,107150.0,107140.0,0.40003123]
[1750062511395,0.5085939,107150.0,107140.0,0.40821927]
[1750062511611,0.5085946,107150.0,107140.0,0.41755268]
[1750062511822,0.5085946,107150.0,107140.0,0.42688582]
[1750062512027,0.5085946,107150.0,107140.0,0.41755268]
[1750062512239,0.69524882,107150.0,107140.0,0.41755268]
[1750062512872,0.69524882,107150.0,107140.0,0.40003159]
[1750062513107,0.69524882,107150.0,107140.0,0.41755268]
[1750062513297,0.69524882,107150.0,107140.0,0.42688582]
[1750062513532,0.63710411,107150.0,107140.0,0.01852109]
[1750062513749,0.70658411,107150.0,107140.0,0.18021458]
[1750062513965,0.72835149,107150.0,107140.0,0.17088145]
[1750062514174,0.72835149,107150.0,107140.0,0.17088169]
[1750062514399,0.81526054,107150.0,107140.0,0.17088174]
[1750062514601,1.2470451,107150.0,107140.0,0.15336]
[1750062514813,0.81526054,107150.0,107140.0,0.15336]
[1750062515026,0.81532395,107150.0,107140.0,0.17088203]